fUSD/lending_fUSD_20240808
["ID","MTS","AMOUNT","RATE_DAILY","PERIOD"]
[334477376,1723151441494,-2639.66101736,0.00025,9]
[334477378,1723151441503,-273720.76598391,0.00025,2]
[334477542,1723151443082,-470.39356303,0.00024888,3]
[334477544,1723151443097,-347.36643697,0.00024888,3]
[334477546,1723151443107,-17202.44316636,0.00025,2]
[334477599,1723151443620,-65448.75971001,0.00025,2]
[334477602,1723151443631,-10816.61358908,0.00025,2]
[334477824,1723151446061,-933.17494973,0.00025,2]
[334477826,1723151446072,-375.6372615,0.00025,2]
[334477832,1723151446125,-917.040015,0.00025,2]
[334478396,1723151731386,-20021.96435556,0.00015,7]
[334478411,1723152170804,153.35,0.00025398,120]
[334478429,1723152481986,7854.8675,0.00011,2]
[334478430,1723152482013,414138.1972814,0.00011,2]
[334478435,1723152551879,500.0,0.00011,2]
[334478436,1723152556537,179.61012932,0.00011,2]
[334478437,1723152561740,183647.80506836,0.00011,2]
[334478439,1723152567210,291.39045799,0.00011,2]
[334478440,1723152578689,1299.16785702,0.00011,2]
[334478445,1723152600931,155.50533946,0.00011,2]
[334478446,1723152608013,200.96027273,0.00011,2]
[334478447,1723152608737,7577.08167818,0.00011,2]
[334478449,1723152614479,424.32014475,0.00011,2]
[334478459,1723152632766,-839.2412,0.000129,2]
[334478460,1723152632775,-332.78217184,0.000129,2]
[334478461,1723152632784,-550.0,0.00013,2]
[334478462,1723152632794,-78.5933655,0.00013333,2]
[334478463,1723152632810,-6599.90554356,0.00013333,2]
[334478464,1723152632821,-3347.64236569,0.00013333,2]
[334478465,1723152632850,-841.88482517,0.00013333,2]
[334478466,1723152632861,-968.08911481,0.00013333,2]
[334478467,1723152632873,-49542.68876929,0.00013333,2]
[334478484,1723152638128,-313.999999,0.00013333,2]
[334478485,1723152638278,-5255.92241343,0.00013333,2]
[334478486,1723152638291,-7453.82723189,0.00013333,2]
[334478487,1723152638303,-3545.96270676,0.00013333,2]
[334478488,1723152638314,-1465.1305333,0.00013333,2]
[334478489,1723152638439,-300.0,0.00013333,2]
[334478490,1723152638527,-2092.25,0.00013333,2]
[334478492,1723152638539,-1685.19000024,0.00013333,2]
[334478628,1723152640342,-2871.20000003,0.00013333,2]
[334478696,1723152641093,-1563.1595437,0.00013333,2]
[334478698,1723152641105,-95722.35865599,0.00013333,2]
[334478701,1723152641115,-179.16,0.00013973,2]
[334478703,1723152641126,-154.42,0.00013973,2]
[334478705,1723152641135,-1049.84272767,0.0001499,2]
[334478707,1723152641144,-300.0,0.00014999,2]
[334478709,1723152641154,-600.0,0.00015,2]
[334478711,1723152641163,-340.85993505,0.00015,4]
[334478713,1723152641172,-22088.29041172,0.00015,2]
[334478715,1723152641182,-668.21559511,0.00016952,2]
[334478717,1723152641192,-564.37000001,0.00017004,2]
[334478719,1723152641203,-150.0,0.00017259,2]
[334478721,1723152641212,-875.58,0.0001726,2]
[334478723,1723152641223,-911.28,0.00017533,2]
[334478725,1723152641232,-15481.31,0.00017534,2]
[334478727,1723152641242,-1013.65,0.00017808,2]
[334478729,1723152641252,-499.99,0.00017808,2]
[334478731,1723152641262,-931.67,0.00017808,2]
[334478733,1723152641271,-150.0,0.000186,2]
[334478734,1723152641281,-1975.0,0.000196,3]
[334478736,1723152641291,-4624.22384602,0.00020588,2]
[334478738,1723152641301,-203.75,0.00020681,2]
[334478740,1723152641311,-7437.76246166,0.00020999,2]
[334478742,1723152641320,-7437.76246166,0.00020999,2]
[334478744,1723152641330,-241.81,0.0002184,2]
[334478746,1723152641340,-154.42,0.00022174,2]
[334478748,1723152641350,-1583.0,0.00022221,2]
[334478750,1723152641359,-555.0,0.00022221,2]
[334478752,1723152641371,-442.805,0.00022221,2]
[334478754,1723152641380,-2296.04,0.00022308,2]
[334478756,1723152641391,-250.0,0.00022344,2]
[334478758,1723152641401,-250.0,0.00022349,2]
[334478760,1723152641410,-729.28,0.00022353,2]
[334478762,1723152641421,-2000.0,0.00022461,2]
[334478764,1723152641430,-151.04,0.00022463,2]
[334478766,1723152641439,-153.35,0.00022576,2]
[334478768,1723152641448,-150.0,0.00022599,2]
[334478770,1723152641458,-270.72,0.00022654,2]
[334478771,1723152641467,-203.75,0.00022945,2]
[334478773,1723152641476,-468.58,0.00023287,2]
[334478775,1723152641485,-468.58,0.00023293,2]
[334478777,1723152641495,-468.58,0.00023299,2]
[334478779,1723152641504,-468.58,0.00023305,2]
[334478781,1723152641513,-468.58,0.00023311,2]
[334478783,1723152641523,-468.58,0.00023317,2]
[334478785,1723152641532,-468.58,0.00023323,2]
[334478787,1723152641541,-468.58,0.00023329,2]
[334478789,1723152641550,-468.58,0.00023336,2]
[334478791,1723152641559,-468.58,0.00023342,2]
[334478793,1723152641569,-468.58,0.00023348,2]
[334478795,1723152641578,-468.58,0.00023354,2]
[334478797,1723152641587,-468.58,0.0002336,2]
[334478798,1723152641596,-468.58,0.00023366,2]
[334478799,1723152641606,-468.58,0.00023372,2]
[334478801,1723152641615,-468.58,0.00023379,2]
[334478803,1723152641626,-468.58,0.00023385,2]
[334478805,1723152641635,-468.58,0.00023391,2]
[334478807,1723152641644,-468.58,0.00023397,2]
[334478808,1723152641653,-287.4,0.000234,7]
[334478809,1723152641663,-468.58,0.00023403,2]
[334478810,1723152641672,-169.95,0.00023569,2]
[334478811,1723152641682,-180.0,0.00023781,2]
[334478812,1723152641691,-422.97,0.0002387,3]
[334478814,1723152641700,-211.49,0.0002387,3]
[334478815,1723152641709,-634.49,0.0002387,3]
[334478817,1723152641719,-108849.37991733,0.0002388,2]
[334478819,1723152641729,-700.0,0.000239,8]
[334478821,1723152641737,-1400.0,0.00024,8]
[334478823,1723152641747,-841.46,0.00024055,2]
[334478825,1723152641757,-2200.0,0.000241,8]
[334478827,1723152641768,-151.96,0.00024192,2]
[334478829,1723152641779,-2900.0,0.000242,8]
[334478831,1723152641788,-3600.0,0.000243,8]
[334478833,1723152641798,-700.0,0.000244,8]
[334478835,1723152641812,-835.61522227,0.00024414,2]
[334478837,1723152641822,-835.61522227,0.00024415,2]
[334478839,1723152641831,-835.61522227,0.0002445,2]
[334478840,1723152641840,-835.61522227,0.00024478,2]
[334478842,1723152641850,-835.61522227,0.00024491,2]
[334478844,1723152641860,-835.61522227,0.00024495,2]
[334478846,1723152641869,-835.61522227,0.00024496,2]
[334478848,1723152641880,-151.080906,0.00024498,17]
[334478850,1723152641889,-151.080906,0.00024498,17]
[334478852,1723152641898,-151.080906,0.00024498,18]
[334478854,1723152641907,-151.080906,0.00024498,18]
[334478856,1723152641916,-293.080906,0.00024498,19]
[334478857,1723152641926,-835.61522227,0.00024498,2]
[334478859,1723152641935,-700.0,0.000245,8]
[334478861,1723152641944,-700.0,0.000246,8]
[334478863,1723152641954,-700.0,0.000247,9]
[334478865,1723152641963,-151.04,0.00024743,2]
[334478867,1723152641973,-965.9951,0.00024798,2]
[334478869,1723152641981,-698.05,0.00024798,2]
[334478871,1723152641990,-1100.0,0.000248,9]
[334478873,1723152641999,-5426.3975,0.0002489,2]
[334478875,1723152642009,-290.4654,0.0002489,2]
[334478877,1723152642018,-1000.0,0.000249,2]
[334478879,1723152642027,-11130.3814,0.000249,2]
[334478881,1723152642036,-3000.0,0.000249,2]
[334478882,1723152642045,-153.38,0.000249,31]
[334478883,1723152642054,-153.38,0.000249,31]
[334478884,1723152642063,-153.38,0.000249,31]
[334478885,1723152642072,-153.38,0.000249,31]
[334478886,1723152642081,-153.38,0.000249,31]
[334478887,1723152642090,-153.38,0.000249,31]
[334478888,1723152642100,-153.38,0.000249,31]
[334478889,1723152642109,-153.38,0.000249,31]
[334478890,1723152642118,-7500.0,0.000249,2]
[334478891,1723152642127,-221.44604994,0.000249,4]
[334478892,1723152642136,-155.0,0.00024979,2]
[334478893,1723152642145,-1256.92584908,0.00024989,2]
[334478894,1723152642154,-4242.0940693,0.00024997,2]
[334478895,1723152642163,-3636.0494653,0.00024997,2]
[334478896,1723152642172,-3030.0048613,0.00024997,2]
[334478897,1723152642181,-2423.9602573,0.00024997,2]
[334478898,1723152642191,-1817.9156533,0.00024997,2]
[334478899,1723152642200,-1211.8710493,0.00024997,2]
[334478900,1723152642210,-151.080906,0.00024998,10]
[334478902,1723152642220,-151.080906,0.00024998,10]
[334478904,1723152642229,-151.080906,0.00024998,11]
[334478906,1723152642238,-151.080906,0.00024998,11]
[334478908,1723152642247,-151.080906,0.00024998,12]
[334478910,1723152642256,-151.080906,0.00024998,12]
[334478912,1723152642265,-151.080906,0.00024998,13]
[334478914,1723152642274,-151.080906,0.00024998,13]
[334478916,1723152642284,-2953.55232105,0.00024999,2]
[334478918,1723152642293,-182.87942266,0.00025,2]
[334478920,1723152642302,-1319.83050868,0.00025,9]
[334478922,1723152642312,-72687.36056393,0.00025,2]
[334478925,1723152643128,-1318.27107175,0.00025,2]
[334478926,1723152643140,-1245.28478886,0.00025,2]
[334478927,1723152643207,-4616.80177371,0.00025,2]
[334478930,1723152644070,-374.72962927,0.00025,2]
[334478931,1723152644082,-2060.65439326,0.00025,2]
[334478932,1723152646395,-227.69229236,0.00013333,2]
[334478933,1723152646405,-200.0,0.00024973,2]
[334478934,1723152646415,-200.0,0.00024973,2]
[334478935,1723152646425,-183.06240764,0.00025,2]
[334478936,1723152646728,-3737.94016708,0.00025,2]
[334478937,1723152646996,-10229.95124445,0.00025,2]
[334478938,1723152647008,-2784.40376051,0.00025,2]
[334478960,1723152813890,166.51,0.00026688,120]
[334479033,1723153833285,-209.0,0.00012999,2]
[334479034,1723153833295,-422.0,0.00012999,2]
[334479035,1723153833305,-96.5020417,0.00013,2]
[334479036,1723153833317,-453.4979583,0.00013,2]
[334479037,1723153833328,-448.7520417,0.0001351,2]
[334479038,1723153833348,-2533.1630583,0.0001351,2]
[334479039,1723153833358,-164.64,0.00013973,2]
[334479040,1723153833367,-155.0,0.00014105,2]
[334479041,1723153833377,-600.0,0.00015,2]
[334479042,1723153833386,-650.0,0.00017,2]
[334479043,1723153833396,-150.0,0.000192,2]
[334479044,1723153833405,-742.0,0.000197,3]
[334479045,1723153833415,-6365.84892455,0.000198,2]
[334479046,1723153833427,-1071.91353711,0.000198,2]
[334479047,1723153833437,-797.91,0.00020633,2]
[334479048,1723153833446,-250.0,0.00020878,2]
[334479049,1723153833456,-500.0,0.00020971,3]
[334479050,1723153833465,-1400.23166036,0.00020998,2]
[334479051,1723153833477,-599.76833964,0.00020998,2]
[334479052,1723153833486,-583.43,0.00021017,2]
[334479053,1723153833496,-150.0,0.00021069,2]
[334479055,1723153833506,-197.78,0.00021203,2]
[334479057,1723153833516,-150.0,0.00021363,2]
[334479059,1723153833525,-250.0,0.00021535,2]
[334479061,1723153833535,-6577.56553854,0.0002187,4]
[334479063,1723153833546,-43422.43446146,0.0002187,4]
[334479065,1723153833556,-151.04,0.00021918,2]
[334479067,1723153833566,-150.0,0.00022488,2]
[334479068,1723153833577,-416.57,0.00022653,2]
[334479070,1723153833587,-166.51,0.00022875,2]
[334479071,1723153833596,-200.0,0.00023,2]
[334479072,1723153833606,-180.0,0.00023205,2]
[334479073,1723153833616,-258.32,0.000236,7]
[334479074,1723153833625,-1583.0,0.00023621,2]
[334479075,1723153833634,-555.0,0.00023621,2]
[334479077,1723153833643,-150.0,0.00023621,2]
[334479079,1723153833653,-150.0,0.00023621,2]
[334479081,1723153833662,-162.823,0.00023621,2]
[334479082,1723153833671,-150.327,0.00023621,2]
[334479083,1723153833681,-150.0,0.00023621,2]
[334479084,1723153833690,-150.186,0.00023621,2]
[334479085,1723153833700,-583.43,0.00023644,2]
[334479086,1723153833709,-1418.6542112,0.00024,2]
[334479087,1723153833718,-7500.0,0.000244,2]
[334479088,1723153833727,-11631.4198,0.0002449,4]
[334479089,1723153833737,-25224.54095,0.0002449,4]
[334479090,1723153833746,-253.81,0.0002449,3]
[334479091,1723153833756,-761.43,0.0002449,3]
[334479092,1723153833765,-17220.67877453,0.000245,9]
[334479093,1723153833775,-45313.49718545,0.000245,5]
[334479094,1723153833790,-492.78675564,0.000245,5]
[334479095,1723153833801,-1000.5000036,0.000245,5]
[334479096,1723153833813,-6427.79601337,0.000245,5]
[334479105,1723153838484,-219.76,0.00022122,2]
[334479106,1723153838494,-151.224,0.00023621,2]
[334479107,1723153838504,-108.89527214,0.00024386,2]
[334479108,1723153838516,-110.86472786,0.00024386,2]
[334479109,1723153838526,-11959.89561067,0.000245,5]
[334479110,1723153838537,-20002.1778,0.000245,5]
[334479111,1723153838549,-30255.95014036,0.000245,5]
[334479112,1723153838564,-27113.10771835,0.000245,5]
[334479113,1723153838669,-30129.67634999,0.000245,5]
[334479114,1723153838766,-98919.69367126,0.000245,5]
[334479115,1723153838778,-7757.40000004,0.000245,5]
[334479315,1723153840677,-155.0,0.00014086,2]
[334479317,1723153840687,-1027.02185574,0.000245,5]
[334479356,1723153841058,-1093.78231069,0.000245,5]
[334479359,1723153841072,-5754.06196572,0.000245,5]
[334479577,1723153843809,-607.54266,0.000245,5]
[334479579,1723153843820,-868.93778364,0.000245,5]
[334479581,1723153843836,-50381.66618844,0.000245,5]
[334479856,1723153846949,-4910.82657762,0.000245,5]
[334479861,1723153846965,-4532.36984759,0.000245,5]
[334479864,1723153846976,-1312.93054738,0.000245,5]
[334479876,1723153847071,-12106.6,0.000245,5]
[334479878,1723153847085,-2363.95962,0.000245,5]
[334479880,1723153847099,-2584.4,0.000245,5]
[334479883,1723153847111,-4490.86171,0.000245,5]
[334479885,1723153847235,-3041.55,0.000245,5]
[334479886,1723153847249,-3018.95,0.000245,5]
[334479887,1723153847282,-18011.4,0.000245,5]
[334480729,1723153917674,198.55,0.00026333,120]
[334480777,1723155032405,-163.91,0.00013973,2]
[334480778,1723155032415,-300.0,0.00019725,2]
[334480779,1723155032425,-4198.8028324,0.0002012,2]
[334480780,1723155032434,-1683.35815661,0.00020191,2]
[334480781,1723155032443,-150.0,0.000202,2]
[334480782,1723155032452,-100.87930857,0.00020631,2]
[334480783,1723155032463,-118.09069143,0.00020631,2]
[334480784,1723155032473,-299.99,0.00020899,7]
[334480785,1723155032482,-743.79,0.00020899,2]
[334480786,1723155032503,-526.47473797,0.00020899,2]
[334480787,1723155032512,-824.712849,0.0002189,2]
[334480788,1723155032524,-371.95167885,0.00022,2]
[334480789,1723155032536,-1081.78,0.00022,2]
[334480790,1723155032546,-7422.95,0.00022,2]
[334480791,1723155032556,-250.0,0.00022108,2]
[334480792,1723155032566,-150.78,0.00022147,2]
[334480793,1723155032575,-250.0,0.00022235,2]
[334480794,1723155032585,-167.15,0.0002241,2]
[334480795,1723155032595,-23900.0,0.00022552,2]
[334480796,1723155032606,-150.0,0.00022602,2]
[334480797,1723155032616,-2000.0,0.00022632,2]
[334480798,1723155032626,-571.77,0.00022684,2]
[334480799,1723155032635,-499.99,0.00022688,2]
[334480800,1723155032645,-166.51,0.00022749,2]
[334480801,1723155032654,-350.06,0.00022871,2]
[334480802,1723155032664,-218.97,0.00022894,2]
[334480804,1723155032674,-50000.0,0.00022899,4]
[334480806,1723155032684,-200.0,0.00023,2]
[334480808,1723155032694,-170.36,0.00023357,2]
[334480809,1723155032703,-198.55,0.00023407,2]
[334480810,1723155032712,-985.03955823,0.00023451,2]
[334480812,1723155032722,-953.142,0.00023621,2]
[334480814,1723155032731,-448.0,0.00023621,2]
[334480816,1723155032758,-200.0,0.000238,8]
[334480818,1723155032767,-251.82,0.000238,7]
[334480820,1723155032776,-155.0,0.00023873,2]
[334480822,1723155032785,-500.0,0.000239,8]
[334480824,1723155032794,-1669.94,0.00024055,2]
[334480825,1723155032803,-834.77,0.00024055,2]
[334480828,1723155032813,-649.94,0.00024062,2]
[334480830,1723155032822,-800.0,0.000241,8]
[334480832,1723155032831,-546.58278282,0.00024124,2]
[334480833,1723155032839,-1100.0,0.000242,8]
[334480834,1723155032849,-4756.2146,0.00024299,2]
[334480835,1723155032858,-1033.1993,0.000243,2]
[334480836,1723155032867,-1300.0,0.000243,8]
[334480837,1723155032876,-320.57346097,0.000243,2]
[334480838,1723155032885,-293.57,0.00024389,3]
[334480839,1723155032894,-880.71,0.00024389,3]
[334480840,1723155032903,-12373.6659,0.0002439,2]
[334480841,1723155032912,-154.83,0.0002439,2]
[334480842,1723155032922,-500.0,0.00024398,5]
[334480843,1723155032931,-500.0,0.00024398,5]
[334480844,1723155032940,-448.22107204,0.00024399,2]
[334480845,1723155032949,-617.93495949,0.00024399,5]
[334480846,1723155032958,-500.0,0.00024399,5]
[334480847,1723155032967,-500.0,0.00024399,5]
[334480848,1723155032976,-843.41,0.00024399,5]
[334480849,1723155032986,-225.58999856,0.00024399,5]
[334480850,1723155033004,-498.53550072,0.00024399,5]
[334480851,1723155033013,-632.84,0.00024399,5]
[334480852,1723155033023,-500.0,0.00024399,5]
[334480853,1723155033032,-501.44643919,0.00024399,5]
[334480854,1723155033041,-500.0,0.00024399,5]
[334480855,1723155033051,-9157.45,0.00024399,5]
[334480856,1723155033060,-500.0,0.00024399,5]
[334480857,1723155033070,-376.87362967,0.00024399,5]
[334480858,1723155033079,-1156.91,0.00024399,5]
[334480859,1723155033089,-500.0,0.00024399,5]
[334480860,1723155033098,-500.0,0.00024399,5]
[334480861,1723155033108,-156.03,0.00024399,5]
[334480862,1723155033117,-500.0,0.00024399,5]
[334480863,1723155033127,-500.0,0.00024399,5]
[334480864,1723155033137,-500.62584436,0.00024399,5]
[334480865,1723155033147,-559.95,0.00024399,5]
[334480866,1723155033157,-501.07854064,0.00024399,5]
[334480867,1723155033166,-500.0,0.00024399,5]
[334480868,1723155033176,-500.0,0.00024399,5]
[334480869,1723155033186,-576.22,0.00024399,5]
[334480870,1723155033196,-500.0,0.00024399,5]
[334480871,1723155033204,-500.0,0.00024399,5]
[334480872,1723155033214,-500.51901478,0.00024399,5]
[334480873,1723155033223,-500.0,0.00024399,5]
[334480874,1723155033233,-444.67102408,0.00024399,5]
[334480875,1723155033252,-1617.87,0.00024399,5]
[334480876,1723155033262,-500.68244265,0.00024399,5]
[334480877,1723155033271,-500.0,0.00024399,5]
[334480878,1723155033281,-500.0,0.00024399,5]
[334480879,1723155033290,-500.0,0.00024399,5]
[334480880,1723155033299,-500.95313155,0.00024399,5]
[334480881,1723155033309,-494.88074921,0.00024399,5]
[334480882,1723155033318,-400.9113423,0.00024399,5]
[334480883,1723155033328,-500.0,0.00024399,5]
[334480884,1723155033337,-500.0,0.00024399,5]
[334480885,1723155033531,-500.0,0.00024399,5]
[334480886,1723155033545,-503.08701847,0.00024399,5]
[334480887,1723155033554,-500.0,0.00024399,5]
[334480888,1723155033564,-500.0,0.00024399,5]
[334480889,1723155033573,-500.0,0.00024399,5]
[334480890,1723155033582,-500.0,0.00024399,5]
[334480891,1723155033590,-500.0,0.00024399,5]
[334480892,1723155033599,-610.59402886,0.00024399,5]
[334480893,1723155033611,-500.0,0.00024399,5]
[334480894,1723155033622,-500.0,0.00024399,5]
[334480895,1723155033631,-500.0,0.00024399,5]
[334480896,1723155033641,-500.0,0.00024399,5]
[334480897,1723155033650,-500.0,0.00024399,5]
[334480898,1723155033660,-500.0,0.00024399,5]
[334480899,1723155033669,-573.33,0.00024399,5]
[334480900,1723155033678,-500.0,0.00024399,5]
[334480901,1723155033687,-500.0,0.00024399,5]
[334480902,1723155033697,-500.0,0.00024399,5]
[334480903,1723155033707,-500.0,0.00024399,5]
[334480904,1723155033716,-500.0,0.00024399,5]
[334480905,1723155033725,-500.0,0.00024399,5]
[334480906,1723155033738,-500.0,0.00024399,5]
[334480907,1723155033753,-527.39659046,0.00024399,5]
[334480908,1723155033762,-500.0,0.00024399,5]
[334480909,1723155033771,-500.0,0.00024399,5]
[334480910,1723155033781,-500.0,0.00024399,5]
[334480911,1723155033790,-500.0,0.00024399,5]
[334480912,1723155033800,-500.0,0.00024399,5]
[334480913,1723155033809,-500.0,0.00024399,5]
[334480914,1723155033820,-186.13,0.00024399,5]
[334480915,1723155033829,-533.92,0.00024399,5]
[334480916,1723155033838,-500.25987838,0.00024399,5]
[334480917,1723155033848,-500.0,0.00024399,5]
[334480918,1723155033857,-501.2834678,0.00024399,5]
[334480919,1723155033867,-500.0,0.00024399,5]
[334480920,1723155033876,-500.0,0.00024399,5]
[334480921,1723155033886,-500.0,0.00024399,5]
[334480922,1723155033895,-500.0,0.00024399,5]
[334480923,1723155033905,-500.0,0.00024399,5]
[334480924,1723155033915,-500.0,0.00024399,5]
[334480925,1723155033925,-535.92,0.00024399,5]
[334480926,1723155033934,-500.0,0.00024399,5]
[334480927,1723155033944,-500.0,0.00024399,5]
[334480928,1723155033954,-500.0,0.00024399,5]
[334480929,1723155033963,-500.0,0.00024399,5]
[334480930,1723155033973,-500.0,0.00024399,5]
[334480931,1723155033983,-500.0,0.00024399,5]
[334480932,1723155034001,-583.39,0.00024399,5]
[334480933,1723155034010,-500.0,0.00024399,5]
[334480934,1723155034020,-500.0,0.00024399,5]
[334480935,1723155034029,-500.0,0.00024399,5]
[334480936,1723155034039,-500.0,0.00024399,5]
[334480937,1723155034048,-500.0,0.00024399,5]
[334480938,1723155034058,-500.0,0.00024399,5]
[334480939,1723155034067,-500.0,0.00024399,5]
[334480940,1723155034077,-5273.6,0.00024399,5]
[334480941,1723155034086,-500.0,0.00024399,5]
[334480942,1723155034096,-500.0,0.00024399,5]
[334480943,1723155034106,-500.0,0.00024399,5]
[334480944,1723155034116,-474.57,0.00024399,5]
[334480945,1723155034126,-500.0,0.00024399,5]
[334480946,1723155034136,-500.0,0.00024399,5]
[334480947,1723155034145,-500.0,0.00024399,5]
[334480948,1723155034155,-500.0,0.00024399,5]
[334480949,1723155034165,-500.0,0.00024399,5]
[334480950,1723155034174,-509.81221618,0.00024399,5]
[334480951,1723155034183,-483.08,0.00024399,5]
[334480952,1723155034194,-500.0,0.00024399,5]
[334480953,1723155034204,-500.0,0.00024399,5]
[334480954,1723155034215,-500.0,0.00024399,5]
[334480955,1723155034225,-222.80923925,0.00024399,5]
[334480956,1723155034239,-500.0,0.00024399,5]
[334480957,1723155034256,-500.0,0.00024399,5]
[334480958,1723155034267,-400.0,0.00024399,5]
[334480959,1723155034276,-500.0,0.00024399,5]
[334480960,1723155034286,-500.0,0.00024399,5]
[334480961,1723155034299,-500.0,0.00024399,5]
[334480962,1723155034309,-500.0,0.00024399,5]
[334480963,1723155034319,-500.0,0.00024399,5]
[334480964,1723155034329,-641.98,0.00024399,5]
[334480965,1723155034339,-500.0,0.00024399,5]
[334480966,1723155034348,-500.0,0.00024399,5]
[334480967,1723155034357,-500.0,0.00024399,5]
[334480968,1723155034368,-500.0,0.00024399,5]
[334480969,1723155034378,-500.0,0.00024399,5]
[334480970,1723155034387,-500.0,0.00024399,5]
[334480971,1723155034397,-500.0,0.00024399,5]
[334480972,1723155034407,-597.59,0.00024399,5]
[334480973,1723155034416,-500.0,0.00024399,5]
[334480974,1723155034426,-500.0,0.00024399,5]
[334480975,1723155034435,-500.0,0.00024399,5]
[334480976,1723155034445,-517.43,0.00024399,5]
[334480977,1723155034454,-500.0,0.00024399,5]
[334480978,1723155034463,-500.0,0.00024399,5]
[334480979,1723155034473,-500.0,0.00024399,5]
[334480980,1723155034482,-501.14530401,0.00024399,5]
[334480981,1723155034502,-500.0,0.00024399,5]
[334480982,1723155034511,-500.0,0.00024399,5]
[334480983,1723155034521,-500.0,0.00024399,5]
[334480984,1723155034532,-500.0,0.00024399,5]
[334480985,1723155034541,-500.0,0.00024399,5]
[334480986,1723155034551,-500.0,0.00024399,5]
[334480987,1723155034560,-500.0,0.00024399,5]
[334480988,1723155034571,-500.0,0.00024399,5]
[334480989,1723155034580,-500.0,0.00024399,5]
[334480990,1723155034589,-500.0,0.00024399,5]
[334480991,1723155034598,-1787.21,0.00024399,5]
[334480992,1723155034608,-500.0,0.00024399,5]
[334480993,1723155034617,-500.0,0.00024399,5]
[334480994,1723155034627,-500.0,0.00024399,5]
[334480995,1723155034637,-456.70340901,0.00024399,5]
[334480996,1723155034647,-500.0,0.00024399,5]
[334480997,1723155034656,-500.0,0.00024399,5]
[334480998,1723155034666,-500.0,0.00024399,5]
[334480999,1723155034677,-500.0,0.00024399,5]
[334481000,1723155034687,-563.74,0.00024399,5]
[334481001,1723155034696,-500.0,0.00024399,5]
[334481002,1723155034706,-500.0,0.00024399,5]
[334481003,1723155034715,-500.0,0.00024399,5]
[334481004,1723155034725,-500.0,0.00024399,5]
[334481005,1723155034739,-500.0,0.00024399,5]
[334481006,1723155034752,-500.0,0.00024399,5]
[334481007,1723155034762,-500.0,0.00024399,5]
[334481008,1723155034771,-561.13637229,0.00024399,5]
[334481009,1723155034780,-500.0,0.00024399,5]
[334481010,1723155034790,-500.0,0.00024399,5]
[334481011,1723155034800,-500.0,0.00024399,5]
[334481012,1723155034809,-500.0,0.00024399,5]
[334481013,1723155034818,-576.98,0.00024399,5]
[334481014,1723155034827,-500.0,0.00024399,5]
[334481015,1723155034836,-500.0,0.00024399,5]
[334481016,1723155034846,-638.91,0.00024399,5]
[334481017,1723155034855,-500.0,0.00024399,5]
[334481018,1723155034866,-500.0,0.00024399,5]
[334481019,1723155034876,-500.0,0.00024399,5]
[334481020,1723155034886,-500.0,0.00024399,5]
[334481021,1723155034895,-500.0,0.00024399,5]
[334481022,1723155034904,-500.0,0.00024399,5]
[334481023,1723155034914,-516.56,0.00024399,5]
[334481024,1723155034923,-500.0,0.00024399,5]
[334481025,1723155034932,-500.0,0.00024399,5]